fUST/lending_fUST_20240914
["ID","MTS","AMOUNT","RATE_DAILY","PERIOD"]
[338132396,1726288309884,-500.0,0.00015616,2]
[338132397,1726288309894,-17291.4,0.00015616,2]
[338132398,1726288309904,-2999.39,0.00015616,2]
[338132399,1726288309914,-675.64,0.00015616,2]
[338132400,1726288309925,-623.26,0.00015616,2]
[338132401,1726288309934,-3458.33,0.00015616,2]
[338132402,1726288309943,-509.31,0.00015616,2]
[338132403,1726288309957,-6026.45,0.00015616,2]
[338132404,1726288309968,-873.79,0.00015616,2]
[338132405,1726288309980,-731.61,0.00015616,2]
[338132406,1726288309990,-520.24,0.00015616,2]
[338132407,1726288310000,-597.72,0.00015616,2]
[338132408,1726288310009,-610.41,0.00015616,2]
[338132409,1726288310019,-698.28,0.00015616,2]
[338132410,1726288310029,-500.0,0.00015616,2]
[338132411,1726288310039,-500.0,0.00015616,2]
[338132412,1726288310049,-765.23,0.00015616,2]
[338132413,1726288310058,-1974.5,0.00015616,2]
[338132414,1726288310068,-1161.96,0.00015616,2]
[338132415,1726288310077,-648.64,0.00015616,2]
[338132416,1726288310087,-641.19,0.00015616,2]
[338132417,1726288310097,-501.1,0.00015616,2]
[338132418,1726288310109,-150.592929,0.00015762,2]
[338132419,1726288310119,-325.97739927,0.0001589,2]
[338132420,1726288310128,-533.07,0.0001589,2]
[338132421,1726288310139,-2896.96,0.0001589,2]
[338132422,1726288310149,-614.54,0.0001589,2]
[338132423,1726288310160,-627.53,0.0001589,2]
[338132424,1726288310171,-582.99,0.0001589,2]
[338132425,1726288310181,-872.57,0.0001589,2]
[338132426,1726288310192,-1337.62,0.0001589,2]
[338132427,1726288310205,-242.65195055,0.0001589,2]
[338132428,1726288310216,-858.33,0.0001589,2]
[338132429,1726288310226,-583.84463817,0.0001589,2]
[338132430,1726288310236,-759.03,0.0001589,2]
[338132431,1726288310257,-2617.46,0.0001589,2]
[338132432,1726288310271,-500.0,0.0001589,2]
[338132433,1726288310281,-500.0,0.0001589,2]
[338132434,1726288310291,-500.0,0.0001589,2]
[338132435,1726288310302,-5361.21,0.0001589,2]
[338132436,1726288310314,-1342.53,0.0001589,2]
[338132437,1726288310324,-956.17,0.0001589,2]
[338132438,1726288310336,-771.92,0.0001589,2]
[338132439,1726288310346,-1179.28,0.0001589,2]
[338132440,1726288310357,-500.0,0.0001589,2]
[338132441,1726288310368,-538.69,0.0001589,2]
[338132442,1726288310381,-729.42,0.0001589,2]
[338132443,1726288310391,-4163.88,0.0001589,2]
[338132444,1726288310402,-150.16197216,0.0001589,2]
[338132445,1726288310412,-17291.4,0.0001589,2]
[338132446,1726288310424,-2999.39,0.0001589,2]
[338132447,1726288310435,-675.64,0.0001589,2]
[338132448,1726288310446,-623.26,0.0001589,2]
[338132449,1726288310456,-3458.33,0.0001589,2]
[338132450,1726288310468,-509.31,0.0001589,2]
[338132451,1726288310478,-6026.45,0.0001589,2]
[338132452,1726288310490,-873.79,0.0001589,2]
[338132453,1726288310500,-731.61,0.0001589,2]
[338132454,1726288310510,-520.24,0.0001589,2]
[338132455,1726288310520,-597.72,0.0001589,2]
[338132456,1726288310530,-610.41,0.0001589,2]
[338132457,1726288310540,-698.28,0.0001589,2]
[338132458,1726288310550,-500.0,0.0001589,2]
[338132459,1726288310559,-288.53914121,0.0001589,2]
[338132460,1726288310570,-765.23,0.0001589,2]
[338132461,1726288310580,-1974.5,0.0001589,2]
[338132462,1726288310590,-1161.96,0.0001589,2]
[338132463,1726288310601,-648.64,0.0001589,2]
[338132464,1726288310611,-641.19,0.0001589,2]
[338132465,1726288310623,-501.1,0.0001589,2]
[338132466,1726288310634,-429.5756723,0.00016,2]
[338132467,1726288310644,-1069.50987416,0.00016,2]
[338132468,1726288310655,-361.51984436,0.00016,30]
[338132469,1726288310665,-150.592929,0.0001602,2]
[338132470,1726288310676,-799.98714967,0.00016123,2]
[338132471,1726288310687,-533.07,0.00016164,2]
[338132472,1726288310698,-2896.96,0.00016164,2]
[338132473,1726288310708,-614.54,0.00016164,2]
[338132474,1726288310719,-627.53,0.00016164,2]
[338132475,1726288310729,-582.99,0.00016164,2]
[338132476,1726288310740,-872.57,0.00016164,2]
[338132477,1726288310750,-1337.62,0.00016164,2]
[338132478,1726288310760,-858.33,0.00016164,2]
[338132479,1726288310771,-759.03,0.00016164,2]
[338132480,1726288310781,-2617.46,0.00016164,2]
[338132481,1726288310791,-266.2252329,0.00016164,2]
[338132482,1726288310802,-180.38465338,0.00016164,2]
[338132483,1726288310812,-500.0,0.00016164,2]
[338132484,1726288310822,-5361.21,0.00016164,2]
[338132485,1726288310832,-1342.53,0.00016164,2]
[338132486,1726288310843,-956.17,0.00016164,2]
[338132487,1726288310854,-771.92,0.00016164,2]
[338132488,1726288310864,-1179.28,0.00016164,2]
[338132489,1726288310874,-323.9547911,0.00016164,2]
[338132490,1726288310889,-538.69,0.00016164,2]
[338132491,1726288310899,-729.42,0.00016164,2]
[338132492,1726288310909,-4163.88,0.00016164,2]
[338132493,1726288310919,-17291.4,0.00016164,2]
[338132494,1726288310930,-2999.39,0.00016164,2]
[338132495,1726288310940,-675.64,0.00016164,2]
[338132496,1726288310952,-623.26,0.00016164,2]
[338132497,1726288310963,-3458.33,0.00016164,2]
[338132498,1726288310972,-509.31,0.00016164,2]
[338132499,1726288310982,-6026.45,0.00016164,2]
[338132500,1726288310992,-873.79,0.00016164,2]
[338132501,1726288311002,-731.61,0.00016164,2]
[338132502,1726288311013,-520.24,0.00016164,2]
[338132503,1726288311023,-597.72,0.00016164,2]
[338132504,1726288311033,-610.41,0.00016164,2]
[338132505,1726288311043,-698.28,0.00016164,2]
[338132506,1726288311054,-500.0,0.00016164,2]
[338132507,1726288311064,-765.23,0.00016164,2]
[338132508,1726288311073,-1974.5,0.00016164,2]
[338132509,1726288311083,-1161.96,0.00016164,2]
[338132510,1726288311093,-648.64,0.00016164,2]
[338132511,1726288311102,-641.19,0.00016164,2]
[338132512,1726288311112,-501.1,0.00016164,2]
[338132513,1726288311121,-150.592929,0.00016279,2]
[338132514,1726288311132,-5268.47623817,0.0001643,2]
[338132515,1726288311141,-183.271447,0.00016438,2]
[338132516,1726288311151,-183.271456,0.00016438,2]
[338132517,1726288311161,-200.0,0.00016438,2]
[338132518,1726288311170,-200.0,0.00016438,2]
[338132519,1726288311179,-200.0,0.00016438,2]
[338132520,1726288311189,-200.0,0.00016438,2]
[338132521,1726288311200,-200.0,0.00016438,2]
[338132522,1726288311209,-201.05988521,0.00016438,2]
[338132523,1726288311219,-533.07,0.00016438,2]
[338132524,1726288311229,-2896.96,0.00016438,2]
[338132525,1726288311238,-614.54,0.00016438,2]
[338132526,1726288311249,-627.53,0.00016438,2]
[338132527,1726288311258,-582.99,0.00016438,2]
[338132528,1726288311268,-872.57,0.00016438,2]
[338132529,1726288311277,-1337.62,0.00016438,2]
[338132530,1726288311287,-858.33,0.00016438,2]
[338132531,1726288311297,-759.03,0.00016438,2]
[338132532,1726288311306,-2617.46,0.00016438,2]
[338132533,1726288311316,-372.64379416,0.00016438,2]
[338132534,1726288311325,-1718.0,0.00016438,2]
[338132535,1726288311338,-5361.21,0.00016438,2]
[338132536,1726288311348,-1342.53,0.00016438,2]
[338132537,1726288311357,-956.17,0.00016438,2]
[338132538,1726288311367,-771.92,0.00016438,2]
[338132539,1726288311377,-1179.28,0.00016438,2]
[338132540,1726288311387,-538.69,0.00016438,2]
[338132541,1726288311396,-729.42,0.00016438,2]
[338132542,1726288311406,-4163.88,0.00016438,2]
[338132543,1726288311415,-17291.4,0.00016438,2]
[338132544,1726288311424,-2999.39,0.00016438,2]
[338132545,1726288311434,-675.64,0.00016438,2]
[338132546,1726288311444,-623.26,0.00016438,2]
[338132547,1726288311454,-3458.33,0.00016438,2]
[338132548,1726288311464,-509.31,0.00016438,2]
[338132549,1726288311473,-6026.45,0.00016438,2]
[338132550,1726288311482,-873.79,0.00016438,2]
[338132551,1726288311491,-731.61,0.00016438,2]
[338132552,1726288311500,-520.24,0.00016438,2]
[338132553,1726288311510,-597.72,0.00016438,2]
[338132554,1726288311520,-610.41,0.00016438,2]
[338132555,1726288311530,-698.28,0.00016438,2]
[338132556,1726288311539,-500.0,0.00016438,2]
[338132557,1726288311549,-765.23,0.00016438,2]
[338132558,1726288311559,-1974.5,0.00016438,2]
[338132559,1726288311568,-1161.96,0.00016438,2]
[338132560,1726288311578,-648.64,0.00016438,2]
[338132561,1726288311587,-641.19,0.00016438,2]
[338132562,1726288311597,-501.1,0.00016438,2]
[338132563,1726288311607,-1334.0,0.00016438,30]
[338132564,1726288311619,-151.0,0.00016438,2]
[338132565,1726288311632,-152.720804,0.00016438,2]
[338132566,1726288311643,-871.10813628,0.00016687,2]
[338132567,1726288311654,-2000.0,0.00016687,2]
[338132568,1726288311665,-2578.18062485,0.000167,2]
[338132569,1726288311676,-151.0,0.00016712,2]
[338132570,1726288311687,-533.07,0.00016712,2]
[338132571,1726288311699,-2896.96,0.00016712,2]
[338132572,1726288311710,-614.54,0.00016712,2]
[338132573,1726288311723,-627.53,0.00016712,2]
[338132574,1726288311734,-582.99,0.00016712,2]
[338132575,1726288311745,-872.57,0.00016712,2]
[338132576,1726288311758,-1337.62,0.00016712,2]
[338132577,1726288311770,-858.33,0.00016712,2]
[338132578,1726288311780,-759.03,0.00016712,2]
[338132579,1726288311794,-2617.46,0.00016712,2]
[338132580,1726288311804,-1718.0,0.00016712,2]
[338132581,1726288311817,-5361.21,0.00016712,2]
[338132582,1726288311826,-1342.53,0.00016712,2]
[338132583,1726288311838,-956.17,0.00016712,2]
[338132584,1726288311850,-771.92,0.00016712,2]
[338132585,1726288311861,-1179.28,0.00016712,2]
[338132586,1726288311872,-538.69,0.00016712,2]
[338132587,1726288311883,-729.42,0.00016712,2]
[338132588,1726288311896,-4163.88,0.00016712,2]
[338132589,1726288311907,-17291.4,0.00016712,2]
[338132590,1726288311918,-2999.39,0.00016712,2]
[338132591,1726288311928,-675.64,0.00016712,2]
[338132592,1726288311939,-623.26,0.00016712,2]
[338132593,1726288311949,-3458.33,0.00016712,2]
[338132594,1726288311960,-509.31,0.00016712,2]
[338132595,1726288311970,-6026.45,0.00016712,2]
[338132596,1726288311980,-873.79,0.00016712,2]
[338132597,1726288311989,-731.61,0.00016712,2]
[338132598,1726288311998,-520.24,0.00016712,2]
[338132599,1726288312009,-597.72,0.00016712,2]
[338132600,1726288312019,-610.41,0.00016712,2]
[338132601,1726288312028,-698.28,0.00016712,2]
[338132602,1726288312038,-335.33808468,0.00016712,2]
[338132603,1726288312047,-765.23,0.00016712,2]
[338132604,1726288312058,-1974.5,0.00016712,2]
[338132605,1726288312069,-1161.96,0.00016712,2]
[338132606,1726288312079,-648.64,0.00016712,2]
[338132607,1726288312090,-641.19,0.00016712,2]
[338132608,1726288312100,-501.1,0.00016712,2]
[338132609,1726288312111,-153.0,0.00016769,2]
[338132610,1726288312122,-533.07,0.00016986,2]
[338132611,1726288312132,-2896.96,0.00016986,2]
[338132612,1726288312142,-614.54,0.00016986,2]
[338132613,1726288312153,-627.53,0.00016986,2]
[338132614,1726288312164,-582.99,0.00016986,2]
[338132615,1726288312174,-872.57,0.00016986,2]
[338132616,1726288312187,-1337.62,0.00016986,2]
[338132617,1726288312198,-858.33,0.00016986,2]
[338132618,1726288312207,-759.03,0.00016986,2]
[338132619,1726288312217,-2617.46,0.00016986,2]
[338132620,1726288312229,-1718.0,0.00016986,2]
[338132621,1726288312250,-5361.21,0.00016986,2]
[338132622,1726288312263,-1342.53,0.00016986,2]
[338132623,1726288312273,-956.17,0.00016986,2]
[338132624,1726288312283,-771.92,0.00016986,2]
[338132625,1726288312294,-1179.28,0.00016986,2]
[338132626,1726288312305,-538.69,0.00016986,2]
[338132627,1726288312318,-729.42,0.00016986,2]
[338132628,1726288312328,-4163.88,0.00016986,2]
[338132629,1726288312339,-17291.4,0.00016986,2]
[338132630,1726288312350,-2999.39,0.00016986,2]
[338132631,1726288312362,-675.64,0.00016986,2]
[338132632,1726288312372,-623.26,0.00016986,2]
[338132633,1726288312383,-3458.33,0.00016986,2]
[338132634,1726288312393,-509.31,0.00016986,2]
[338132635,1726288312404,-6026.45,0.00016986,2]
[338132636,1726288312414,-873.79,0.00016986,2]
[338132637,1726288312425,-731.61,0.00016986,2]
[338132638,1726288312434,-520.24,0.00016986,2]
[338132639,1726288312446,-597.72,0.00016986,2]
[338132640,1726288312458,-610.41,0.00016986,2]
[338132641,1726288312470,-698.28,0.00016986,2]
[338132642,1726288312484,-765.23,0.00016986,2]
[338132643,1726288312493,-1974.5,0.00016986,2]
[338132644,1726288312505,-1161.96,0.00016986,2]
[338132645,1726288312515,-648.64,0.00016986,2]
[338132646,1726288312527,-641.19,0.00016986,2]
[338132647,1726288312537,-501.1,0.00016986,2]
[338132648,1726288312547,-2000.0,0.00016987,2]
[338132649,1726288312560,-2000.0,0.00016987,2]
[338132650,1726288312570,-2000.0,0.00016987,2]
[338132651,1726288312581,-533.11563147,0.0001726,2]
[338132652,1726288312592,-2897.12849432,0.0001726,2]
[338132653,1726288312604,-614.54193092,0.0001726,2]
[338132654,1726288312617,-627.56944771,0.0001726,2]
[338132655,1726288312629,-583.08383755,0.0001726,2]
[338132656,1726288312639,-872.78197231,0.0001726,2]
[338132657,1726288312651,-1337.72800674,0.0001726,2]
[338132658,1726288312662,-858.46740898,0.0001726,2]
[338132659,1726288312672,-759.11873478,0.0001726,2]
[338132660,1726288312686,-2617.56695036,0.0001726,2]
[338132661,1726288312696,-1718.0,0.0001726,2]
[338132662,1726288312716,-5361.28096061,0.0001726,2]
[338132663,1726288312726,-1342.60349536,0.0001726,2]
[338132664,1726288312737,-956.17822804,0.0001726,2]
[338132665,1726288312748,-772.09496914,0.0001726,2]
[338132666,1726288312760,-1179.44626318,0.0001726,2]
[338132667,1726288312773,-538.74768162,0.0001726,2]
[338132668,1726288312783,-729.57768289,0.0001726,2]
[338132669,1726288312793,-4164.01370099,0.0001726,2]
[338132670,1726288312804,-17291.62462005,0.0001726,2]
[338132671,1726288312815,-2999.43360725,0.0001726,2]
[338132672,1726288312825,-675.79458578,0.0001726,2]
[338132673,1726288312835,-623.41118275,0.0001726,2]
[338132674,1726288312850,-3458.51289959,0.0001726,2]
[338132675,1726288312862,-509.33287073,0.0001726,2]
[338132676,1726288312874,-6026.61335841,0.0001726,2]
[338132677,1726288312885,-873.98783239,0.0001726,2]
[338132678,1726288312896,-731.76424955,0.0001726,2]
[338132679,1726288312908,-520.47422333,0.0001726,2]
[338132680,1726288312918,-597.84565587,0.0001726,2]
[338132681,1726288312929,-610.53690041,0.0001726,2]
[338132682,1726288312939,-698.50147315,0.0001726,2]
[338132683,1726288312948,-765.44911283,0.0001726,2]
[338132684,1726288312961,-1974.72,0.0001726,2]
[338132685,1726288312971,-1162.15947118,0.0001726,2]
[338132686,1726288312981,-648.85198108,0.0001726,2]
[338132687,1726288312991,-641.33346133,0.0001726,2]
[338132688,1726288313001,-1718.0,0.00017534,2]
[338132689,1726288313013,-6218.2376837,0.00017534,2]
[338132690,1726288313023,-153.0,0.00017534,2]
[338132691,1726288313032,-153.0,0.00017534,2]
[338132692,1726288313042,-153.0,0.00017534,2]
[338132693,1726288313051,-1998.68434282,0.000176,2]
[338132694,1726288313061,-524.0,0.00017667,2]
[338132695,1726288313247,-150.0,0.00017667,2]
[338132696,1726288313271,-153.1289409,0.00017706,2]
[338132697,1726288313280,-208.5342696,0.00017706,2]
[338132698,1726288313291,-211.4745599,0.00017706,2]
[338132699,1726288313302,-1718.0,0.00017808,2]
[338132700,1726288313312,-2623.84,0.00018,2]
[338132701,1726288313323,-1010.2622,0.00018,14]
[338132702,1726288313334,-212.7,0.00018,10]
[338132703,1726288313345,-154.0,0.00018,10]
[338132704,1726288313357,-168.5,0.00018,2]
[338132705,1726288313368,-399.94740437,0.00018,2]
[338132706,1726288313378,-1718.0,0.00018082,2]
[338132707,1726288313388,-1718.0,0.00018356,2]
[338132708,1726288313399,-6007.79617844,0.00018447,2]
[338132709,1726288313410,-153.0,0.00018528,2]
[338132710,1726288313420,-1718.0,0.0001863,2]
[338132711,1726288313430,-3219.84473923,0.000188,2]
[338132712,1726288313441,-1718.0,0.00018904,2]
[338132713,1726288313450,-17465.28497901,0.00019,2]
[338132714,1726288313462,-502.89771666,0.00019178,2]
[338132715,1726288313472,-2000.0,0.00019178,2]
[338132716,1726288313483,-836.6582707,0.00019178,2]
[338132717,1726288313493,-1718.0,0.00019178,2]
[338132718,1726288313504,-1000.0,0.00019178,2]
[338132719,1726288313516,-460.0,0.00019178,30]
[338132720,1726288313527,-163.5115763,0.00019178,2]
[338132721,1726288313537,-153.210275,0.00019178,2]
[338132722,1726288313547,-180.802371,0.00019178,2]
[338132723,1726288313558,-276.516495,0.00019178,2]
[338132724,1726288313568,-444.4697064,0.00019178,4]
[338132725,1726288313579,-10141.708129,0.00019178,2]
[338132726,1726288313590,-267.80962956,0.00019278,2]
[338132727,1726288313600,-2625.22,0.000194,7]
[338132728,1726288313610,-1718.0,0.00019452,2]
[338132729,1726288313623,-2500.0,0.00019578,2]
[338132730,1726288313633,-2500.0,0.00019578,2]
[338132731,1726288313644,-2500.0,0.00019578,2]
[338132732,1726288313655,-311.0,0.0001974,2]
[338132733,1726288313666,-10141.708129,0.00019863,2]
[338132734,1726288313676,-160.0,0.00019999,2]
[338132735,1726288313688,-160.0,0.00019999,2]
[338132736,1726288313701,-160.0,0.00019999,2]
[338132737,1726288313711,-46298.18116655,0.0002,4]
[338132738,1726288313723,-984.79443303,0.0002,10]
[338132739,1726288313733,-11673.68561886,0.0002,2]
[338132740,1726288313742,-500.0,0.0002,2]
[338132741,1726288313753,-2854.85028088,0.0002,10]
[338132742,1726288313763,-184.0,0.0002,2]
[338132743,1726288313774,-3074.27312922,0.0002,30]
[338132744,1726288313783,-791.048592,0.0002,30]
[338132745,1726288313792,-332167.55312638,0.0002,16]
[338132746,1726288313802,-5087.68863363,0.0002,2]
[338132747,1726288313812,-150.00202944,0.0002,2]
[338132748,1726288313822,-151.0,0.0002,2]
[338132749,1726288313831,-349.265991,0.00020187,2]
[338132750,1726288313842,-153.0,0.00020256,2]
[338132751,1726288313853,-153.0521378,0.00020256,2]
[338132752,1726288313866,-153.0,0.00020256,2]
[338132753,1726288313876,-153.0,0.00020256,2]
[338132754,1726288313885,-309.6430647,0.00020256,2]
[338132755,1726288313895,-153.0,0.00020256,2]
[338132756,1726288313906,-153.0,0.00020282,2]
[338132757,1726288313917,-153.0,0.00020282,2]
[338132758,1726288313928,-153.0,0.00020282,2]
[338132759,1726288313941,-153.0,0.00020282,2]
[338132760,1726288313952,-153.0,0.00020282,2]
[338132761,1726288313962,-279.91162945,0.0002051,7]
[338132762,1726288313972,-2500.0,0.0002051,7]
[338132763,1726288313982,-299.88701397,0.0002051,2]
[338132764,1726288313992,-1000.0,0.00020547,2]
[338132765,1726288314002,-3148.116663,0.00020548,2]
[338132766,1726288314013,-10141.708129,0.00020548,2]
[338132767,1726288314024,-524.0,0.00020667,2]
[338132768,1726288314033,-150.0,0.00020667,2]
[338132769,1726288314044,-499.32,0.00021,2]
[338132770,1726288314054,-500.0,0.00021,2]
[338132771,1726288314064,-3000.0,0.00021,2]
[338132772,1726288314075,-3000.0,0.0002101,2]
[338132773,1726288314086,-3000.0,0.0002102,2]
[338132774,1726288314096,-3000.0,0.0002103,2]
[338132775,1726288314107,-3000.0,0.0002104,2]
[338132776,1726288314118,-3000.0,0.0002105,2]
[338132777,1726288314129,-3000.0,0.0002106,2]
[338132778,1726288314139,-3155.438157,0.0002107,2]
[338132779,1726288314149,-1710.90640643,0.000212,30]
[338132780,1726288314158,-799.98714967,0.00021372,2]
[338132781,1726288314167,-1000.0,0.00021917,2]
[338132782,1726288314177,-1006.10367191,0.00021917,2]
[338132783,1726288314187,-1000.0,0.00021917,2]
[338132784,1726288314196,-166.666666,0.00021918,2]
[338132785,1726288314207,-155.0,0.00022,2]
[338132786,1726288314217,-1162.05244259,0.00022,2]
[338132787,1726288314227,-306.0,0.00022014,2]
[338132788,1726288314238,-3000.0,0.00022373,2]
[338132789,1726288314249,-3000.0,0.00022373,2]
[338132790,1726288314260,-3000.0,0.00022373,2]
[338132791,1726288314270,-166.666666,0.00022431,2]
[338132792,1726288314280,-254.28068962,0.00022822,2]
[338132793,1726288314290,-166.666666,0.00022944,2]
[338132794,1726288314299,-1992.26,0.00023,7]
[338132795,1726288314309,-240.31513029,0.00023,2]
[338132796,1726288314318,-337.0,0.00023,2]
[338132797,1726288314327,-195.0,0.00023,2]
[338132798,1726288314337,-251.58,0.00023229,2]
[338132799,1726288314347,-1000.0,0.00023287,2]
[338132800,1726288314357,-337.0,0.00023288,2]
[338132801,1726288314367,-166.666666,0.00023456,2]
[338132802,1726288314377,-524.0,0.00023667,2]
[338132803,1726288314386,-166.666666,0.00023969,2]
[338132804,1726288314396,-9618.49210571,0.00024,3]
[338132805,1726288314406,-500.0,0.00024,2]
[338132806,1726288314415,-6483.716064,0.00024,2]
[338132807,1726288314424,-306.0,0.00024082,2]
[338132808,1726288314433,-337.0,0.00024164,2]
[338132809,1726288314443,-160.0,0.00024419,3]
[338132810,1726288314453,-160.0,0.00024461,4]
[338132811,1726288314462,-166.666666,0.00024482,2]
[338132812,1726288314472,-1018.24383409,0.000245,2]
[338132813,1726288314483,-160.0,0.00024503,5]
[338132814,1726288314492,-306.0,0.00024521,2]
[338132815,1726288314502,-160.0,0.00024545,6]
[338132816,1726288314511,-160.0,0.00024587,7]
[338132817,1726288314520,-160.0,0.00024629,8]
[338132818,1726288314530,-1000.0,0.00024657,2]
[338132819,1726288314540,-155.29195794,0.00024658,30]
[338132820,1726288314549,-200.0,0.00024658,15]
[338132821,1726288314561,-380.0,0.00024658,2]
[338132822,1726288314571,-160.0,0.00024671,9]
[338132823,1726288314582,-2187.68,0.000247,14]
[338132824,1726288314591,-150.112233,0.000247,2]
[338132825,1726288314601,-150.112233,0.000247,3]
[338132826,1726288314611,-160.0,0.00024713,10]
[338132827,1726288314623,-160.0,0.00024755,11]
[338132828,1726288314632,-160.0,0.00024797,12]
[338132829,1726288314642,-160.0,0.00024839,13]
[338132830,1726288314651,-160.0,0.00024881,14]
[338132831,1726288314661,-160.0,0.00024923,15]
[338132832,1726288314672,-208.5342696,0.00024932,2]
[338132833,1726288314682,-208.5342696,0.00024932,2]
[338132834,1726288314691,-166.9346222,0.00024932,2]
[338132835,1726288314701,-160.0,0.00024965,16]
[338132836,1726288314712,-190.79982622,0.00024965,5]
[338132837,1726288314723,-300.0,0.00025,2]
[338132838,1726288314732,-300.0,0.00025,2]
[338132839,1726288314742,-300.0,0.00025,2]
[338132840,1726288314753,-2407.0,0.00025,2]
[338132841,1726288314763,-300.0,0.00025,2]
[338132842,1726288314772,-34044.77104356,0.00025,2]
[338132843,1726288314782,-207.0,0.00025,2]
[338132844,1726288314795,-310.25137419,0.00025,2]
[338132845,1726288314805,-300.0,0.00025,2]
[338132846,1726288314815,-152.2,0.00025,31]
[338132847,1726288314824,-152.2,0.00025,31]
[338132848,1726288314834,-152.2,0.00025,31]
[338132849,1726288314845,-152.2,0.00025,31]
[338132850,1726288314856,-152.2,0.00025,31]
[338132851,1726288314867,-152.2,0.00025,31]
[338132852,1726288314879,-152.2,0.00025,31]
[338132853,1726288314891,-152.2,0.00025,31]
[338132854,1726288314901,-152.2,0.00025,31]
[338132855,1726288314912,-153.0,0.00025075,2]
[338132856,1726288314922,-84288.80857198,0.0002509,2]
[338132857,1726288314932,-153.0,0.00025125,2]
[338132858,1726288314942,-306.0,0.00025125,2]
[338132859,1726288314951,-153.0,0.00025125,2]
[338132860,1726288314961,-153.0,0.00025125,2]
[338132861,1726288314970,-153.0,0.00025125,2]
[338132862,1726288314980,-153.0,0.00025125,2]
[338132863,1726288314992,-153.0,0.00025125,2]
[338132864,1726288315002,-153.2837228,0.00025125,2]
[338132865,1726288315014,-153.0,0.00025125,2]
[338132866,1726288315025,-3500.0,0.00025342,2]
[338132867,1726288315034,-3500.0,0.00025342,2]
[338132868,1726288315044,-1682.10767172,0.00025342,2]
[338132869,1726288315053,-340.0,0.00025373,2]
[338132870,1726288315063,-152.2,0.000254,31]
[338132871,1726288315072,-152.2,0.000254,31]
[338132872,1726288315081,-152.2,0.000254,31]
[338132873,1726288315091,-152.2,0.000254,31]
[338132874,1726288315099,-152.2,0.000254,31]
[338132875,1726288315110,-152.2,0.000254,31]
[338132876,1726288315119,-152.2,0.000254,31]
[338132877,1726288315128,-152.2,0.000254,31]
[338132878,1726288315139,-152.2,0.000254,31]
[338132879,1726288315148,-152.2,0.000254,31]
[338132880,1726288315157,-152.2,0.000254,31]
[338132881,1726288315167,-152.2,0.000254,31]
[338132882,1726288315176,-239.3069737,0.00025416,2]
[338132883,1726288315185,-900.0,0.00025469,3]
[338132884,1726288315195,-155.29195794,0.00025589,30]
[338132885,1726288315205,-152.2,0.000258,31]
[338132886,1726288315215,-152.2,0.000258,31]
[338132887,1726288315228,-152.2,0.000258,31]
[338132888,1726288315238,-152.2,0.000258,31]
[338132889,1726288315248,-152.2,0.000258,31]
[338132890,1726288315260,-152.2,0.000258,31]
[338132891,1726288315270,-152.2,0.000258,31]
[338132892,1726288315279,-152.2,0.000258,31]
[338132893,1726288315288,-152.2,0.000258,31]
[338132894,1726288315297,-152.2,0.000258,31]
[338132895,1726288315306,-152.2,0.000258,31]